[Event "*** Titled Tuesday Blitz"]
[Site "Chess.com"]
[Date "2020.04.21"]
[Round "7"]
[White "Lysiak_Poltorak"]
[Black "lolo9292"]
[Result "1-0"]
[WhiteElo "2352"]
[BlackElo "2498"]
[TimeControl "180+1"]
[EndTime "11:20:32 PDT"]
[Termination "Lysiak_Poltorak won by resignation"]

1. e4 {[%clk 0:03:00.9]} 1... g6 {[%clk 0:03:00.9]} 2. d4 {[%clk 0:03:00.3]}
2... Bg7 {[%clk 0:01:35.3]} 3. Nc3 {[%clk 0:02:59.3]} 3... d6 {[%clk 0:01:36.2]}
4. Be3 {[%clk 0:02:58.8]} 4... Nc6 {[%clk 0:01:36.6]} 5. h4 {[%clk 0:02:55.8]}
5... h6 {[%clk 0:01:36.2]} 6. Qd2 {[%clk 0:02:54.3]} 6... e6 {[%clk 0:01:35.7]}
7. O-O-O {[%clk 0:02:52.6]} 7... a6 {[%clk 0:01:35]} 8. f3 {[%clk 0:02:52.3]}
8... Nge7 {[%clk 0:01:35.2]} 9. g4 {[%clk 0:02:51.6]} 9... b5 {[%clk 0:01:35.3]}
10. Kb1 {[%clk 0:02:49.7]} 10... Bb7 {[%clk 0:01:35.6]} 11. Nh3 {[%clk
0:02:48.7]} 11... Rc8 {[%clk 0:01:32.2]} 12. Ne2 {[%clk 0:02:43.4]} 12... Nb8
{[%clk 0:01:31.4]} 13. Bg2 {[%clk 0:02:38.4]} 13... Nd7 {[%clk 0:01:31.2]} 14.
h5 {[%clk 0:02:02.7]} 14... g5 {[%clk 0:01:30.9]} 15. f4 {[%clk 0:02:03.2]}
15... gxf4 {[%clk 0:01:30]} 16. Nexf4 {[%clk 0:02:00.3]} 16... Nb6 {[%clk
0:01:29.4]} 17. Qe2 {[%clk 0:01:56.1]} 17... Nc4 {[%clk 0:01:27.7]} 18. Bc1
{[%clk 0:01:54]} 18... c5 {[%clk 0:01:23.5]} 19. d5 {[%clk 0:01:54.3]} 19... Qa5
{[%clk 0:01:22.5]} 20. dxe6 {[%clk 0:01:52.2]} 20... Qb4 {[%clk 0:01:21.4]} 21.
c3 {[%clk 0:01:49.8]} 21... Bxc3 {[%clk 0:01:20]} 22. Nd3 {[%clk 0:01:43.2]}
22... Na3+ {[%clk 0:01:14.5]} 23. Ka1 {[%clk 0:01:42.6]} 23... Qd4 {[%clk
0:01:10.1]} 24. bxc3 {[%clk 0:01:41.6]} 24... Qxc3+ {[%clk 0:01:11]} 25. Bb2
{[%clk 0:01:41.7]} 25... Nc2+ {[%clk 0:01:10.4]} 26. Kb1 {[%clk 0:01:40.6]}
26... Na3+ {[%clk 0:01:11.3]} 27. Bxa3 {[%clk 0:01:38.6]} 27... Qxa3 {[%clk
0:01:12.2]} 28. exf7+ {[%clk 0:01:38.9]} 28... Kd7 {[%clk 0:01:12.2]} 29. Qb2
{[%clk 0:01:38]} 29... Qa4 {[%clk 0:01:12.1]} 30. Rhf1 {[%clk 0:01:34.3]} 30...
c4 {[%clk 0:01:08.7]} 31. Ne5+ {[%clk 0:01:30.5]} 31... Kc7 {[%clk 0:01:08.1]}
32. Ng6 {[%clk 0:01:30]} 32... Nxg6 {[%clk 0:01:05.9]} 33. hxg6 {[%clk
0:01:30.9]} 33... c3 {[%clk 0:01:04.6]} 34. Qxc3+ {[%clk 0:01:28.5]} 34... Kb8
{[%clk 0:01:04.3]} 35. Qd4 {[%clk 0:01:28.7]} 35... Qc2+ {[%clk 0:01:02.7]} 36.
Ka1 {[%clk 0:01:27.8]} 36... Qxg2 {[%clk 0:01:00.3]} 37. g7 {[%clk 0:01:20.9]}
37... Rc2 {[%clk 0:00:59.5]} 38. Rf2 {[%clk 0:01:17.9]} 38... Rxf2 {[%clk
0:00:54]} 39. Qxf2 {[%clk 0:01:16.6]} 39... Qxf2 {[%clk 0:00:51.6]} 40. Nxf2
{[%clk 0:01:17.5]} 1-0

[Event "*** Titled Tuesday Blitz"]
[Site "Chess.com"]
[Date "2020.04.21"]
[Round "7"]
[White "pomeraniandog"]
[Black "kleopl"]
[Result "0-1"]
[WhiteElo "1834"]
[BlackElo "2438"]
[TimeControl "180+1"]
[EndTime "11:20:33 PDT"]
[Termination "kleopl won on time"]

1. e4 {[%clk 0:03:00.9]} 1... c6 {[%clk 0:02:59.8]} 2. d4 {[%clk 0:02:59.8]}
2... d5 {[%clk 0:03:00.7]} 3. exd5 {[%clk 0:03:00.6]} 3... cxd5 {[%clk
0:03:01.6]} 4. Bd3 {[%clk 0:03:00.8]} 4... Nc6 {[%clk 0:03:00.9]} 5. c3 {[%clk
0:03:01.3]} 5... Nf6 {[%clk 0:03:01]} 6. Bf4 {[%clk 0:02:58.7]} 6... Bg4 {[%clk
0:03:00.9]} 7. Qb3 {[%clk 0:02:57.9]} 7... Qc8 {[%clk 0:03:01.1]} 8. Nd2 {[%clk
0:02:55.9]} 8... e6 {[%clk 0:03:01]} 9. h3 {[%clk 0:02:49.6]} 9... Bh5 {[%clk
0:03:00.2]} 10. Ngf3 {[%clk 0:02:45.6]} 10... Be7 {[%clk 0:03:00.3]} 11. O-O
{[%clk 0:02:23.6]} 11... Bg6 {[%clk 0:02:59.1]} 12. Bxg6 {[%clk 0:02:07.4]}
12... hxg6 {[%clk 0:03:00]} 13. Ne5 {[%clk 0:02:04.5]} 13... Kf8 {[%clk
0:02:56.6]} 14. Rae1 {[%clk 0:01:55.2]} 14... Kg8 {[%clk 0:02:55.4]} 15. Bg5
{[%clk 0:01:45.6]} 15... Qc7 {[%clk 0:02:38.5]} 16. f4 {[%clk 0:01:38.4]} 16...
Bd6 {[%clk 0:02:33.6]} 17. Ndf3 {[%clk 0:01:20.2]} 17... Ne8 {[%clk 0:02:29.9]}
18. Bh4 {[%clk 0:01:10.2]} 18... Rb8 {[%clk 0:02:27.6]} 19. Bg3 {[%clk
0:01:04.7]} 19... Rh5 {[%clk 0:02:22.1]} 20. Ng5 {[%clk 0:00:43.6]} 20... Nd8
{[%clk 0:02:18.4]} 21. Nexf7 {[%clk 0:00:25.7]} 21... Nxf7 {[%clk 0:02:16.2]}
22. Nxe6 {[%clk 0:00:26.1]} 22... Qd7 {[%clk 0:02:08.6]} 23. Bh2 {[%clk
0:00:19.9]} 23... Nf6 {[%clk 0:01:59.9]} 24. Nc5 {[%clk 0:00:18.6]} 24... Bxc5
{[%clk 0:01:56.7]} 25. dxc5 {[%clk 0:00:18.5]} 25... Rc8 {[%clk 0:01:57.3]} 26.
Qb4 {[%clk 0:00:14.6]} 26... Qc6 {[%clk 0:01:38.1]} 27. Rf2 {[%clk 0:00:09]}
27... Qxc5 {[%clk 0:01:32]} 28. Qxb7 {[%clk 0:00:05.4]} 28... Ne4 {[%clk
0:01:31.4]} 29. Rxe4 {[%clk 0:00:02.3]} 29... dxe4 {[%clk 0:01:32.3]} 0-1

[Event "*** Titled Tuesday Blitz"]
[Site "Chess.com"]
[Date "2020.04.21"]
[Round "7"]
[White "WPWPWP-2015"]
[Black "ferdipy"]
[Result "1-0"]
[WhiteElo "2412"]
[BlackElo "2223"]
[TimeControl "180+1"]
[EndTime "11:20:35 PDT"]
[Termination "WPWPWP-2015 won by resignation"]

1. e4 {[%clk 0:03:00.9]} 1... c5 {[%clk 0:02:56.2]} 2. Nf3 {[%clk 0:03:00.4]}
2... Nc6 {[%clk 0:02:56]} 3. d4 {[%clk 0:03:00.6]} 3... cxd4 {[%clk 0:02:56]} 4.
Nxd4 {[%clk 0:03:01.2]} 4... Nf6 {[%clk 0:02:56.7]} 5. Nc3 {[%clk 0:03:01.4]}
5... e5 {[%clk 0:02:57.1]} 6. Ndb5 {[%clk 0:03:01.7]} 6... d6 {[%clk 0:02:57.8]}
7. Nd5 {[%clk 0:02:59.7]} 7... Nxd5 {[%clk 0:02:55.6]} 8. exd5 {[%clk
0:03:00.6]} 8... Nb8 {[%clk 0:02:55.7]} 9. Be3 {[%clk 0:02:54.4]} 9... a6 {[%clk
0:02:35.8]} 10. Na3 {[%clk 0:02:52.1]} 10... Be7 {[%clk 0:02:25.7]} 11. h4
{[%clk 0:02:47.6]} 11... Bxh4 {[%clk 0:02:06.5]} 12. Qh5 {[%clk 0:02:46]} 12...
Bf6 {[%clk 0:02:03.1]} 13. Nc4 {[%clk 0:02:45.1]} 13... g6 {[%clk 0:01:45.6]}
14. Qf3 {[%clk 0:02:43.4]} 14... b5 {[%clk 0:01:10.5]} 15. Nb6 {[%clk
0:02:39.4]} 15... Bb7 {[%clk 0:01:10.9]} 16. Nxa8 {[%clk 0:02:35.2]} 16... Bxa8
{[%clk 0:01:11.8]} 17. a4 {[%clk 0:02:31.3]} 17... O-O {[%clk 0:00:50.1]} 18.
axb5 {[%clk 0:02:21.3]} 18... e4 {[%clk 0:00:42.9]} 19. Qh3 {[%clk 0:02:11.2]}
19... h5 {[%clk 0:00:42.8]} 20. Be2 {[%clk 0:02:04.9]} 20... Bxb2 {[%clk
0:00:38]} 21. Bxh5 {[%clk 0:01:45.4]} 21... Qf6 {[%clk 0:00:28.1]} 22. Be2
{[%clk 0:01:38.6]} 22... Re8 {[%clk 0:00:28]} 23. Rd1 {[%clk 0:01:30.2]} 23...
Re5 {[%clk 0:00:16.3]} 24. Qh7+ {[%clk 0:01:26.4]} 24... Kf8 {[%clk 0:00:16.4]}
25. Qh8+ {[%clk 0:01:25.2]} 25... Qxh8 {[%clk 0:00:15.2]} 26. Rxh8+ {[%clk
0:01:26.1]} 26... Ke7 {[%clk 0:00:15.6]} 27. Rxb8 {[%clk 0:01:25.8]} 27... Bxd5
{[%clk 0:00:14.7]} 28. bxa6 {[%clk 0:01:24.3]} 28... g5 {[%clk 0:00:08.7]} 29.
Rxb2 {[%clk 0:01:22.2]} 29... g4 {[%clk 0:00:08.8]} 1-0

[Event "*** Titled Tuesday Blitz"]
[Site "Chess.com"]
[Date "2020.04.21"]
[Round "7"]
[White "Avileyshon7"]
[Black "AndrewMaco"]
[Result "0-1"]
[WhiteElo "2328"]
[BlackElo "2551"]
[TimeControl "180+1"]
[EndTime "11:20:36 PDT"]
[Termination "AndrewMaco won by resignation"]

1. e4 {[%clk 0:03:00]} 1... c5 {[%clk 0:02:58.5]} 2. Nf3 {[%clk 0:02:57.7]} 2...
d6 {[%clk 0:02:59.4]} 3. d4 {[%clk 0:02:57.6]} 3... cxd4 {[%clk 0:03:00.3]} 4.
Nxd4 {[%clk 0:02:58]} 4... Nf6 {[%clk 0:03:00.8]} 5. Nc3 {[%clk 0:02:58.5]} 5...
a6 {[%clk 0:03:00.9]} 6. Bg5 {[%clk 0:02:58.8]} 6... e6 {[%clk 0:03:00.7]} 7.
Qe2 {[%clk 0:02:58.5]} 7... h6 {[%clk 0:02:46.8]} 8. Bh4 {[%clk 0:02:56.1]} 8...
Be7 {[%clk 0:02:47]} 9. O-O-O {[%clk 0:02:52.6]} 9... Nxe4 {[%clk 0:02:47.3]}
10. Bxe7 {[%clk 0:02:00.7]} 10... Nxc3 {[%clk 0:02:45.4]} 11. Qc4 {[%clk
0:02:00.4]} 11... Nxa2+ {[%clk 0:02:36.3]} 12. Qxa2 {[%clk 0:01:56]} 12... Qxe7
{[%clk 0:02:34.6]} 13. Nb5 {[%clk 0:01:48.2]} 13... d5 {[%clk 0:02:30.8]} 14.
Bd3 {[%clk 0:01:30.6]} 14... Nc6 {[%clk 0:02:28.9]} 15. Rhe1 {[%clk 0:01:24.3]}
15... O-O {[%clk 0:02:28.8]} 16. Nc3 {[%clk 0:01:24.1]} 16... Qf6 {[%clk
0:02:22.7]} 17. f3 {[%clk 0:01:22.4]} 17... Bd7 {[%clk 0:02:22.3]} 18. Kb1
{[%clk 0:01:21.5]} 18... Rfc8 {[%clk 0:02:20.7]} 19. Na4 {[%clk 0:01:19]} 19...
Nb4 {[%clk 0:02:19.1]} 20. Qb3 {[%clk 0:01:19.4]} 20... Nxd3 {[%clk 0:02:18.4]}
21. Rxd3 {[%clk 0:01:19.8]} 21... Bxa4 {[%clk 0:02:16.1]} 22. Qxa4 {[%clk
0:01:20]} 22... Rc4 {[%clk 0:02:11.5]} 23. Qd7 {[%clk 0:01:13.5]} 23... Rac8
{[%clk 0:02:09.4]} 24. Rb3 {[%clk 0:01:08.3]} 24... b5 {[%clk 0:02:07.8]} 25. c3
{[%clk 0:01:01.8]} 25... Qg6+ {[%clk 0:02:08]} 26. Ka2 {[%clk 0:00:58.7]} 26...
Ra4+ {[%clk 0:02:02.8]} 27. Ra3 {[%clk 0:00:58.4]} 27... Rcc4 {[%clk 0:02:02]}
28. Rxa4 {[%clk 0:00:35.9]} 28... Rxa4+ {[%clk 0:01:56.2]} 29. Kb3 {[%clk
0:00:35.5]} 29... d4 {[%clk 0:01:51.3]} 30. Re4 {[%clk 0:00:27.7]} 30... dxc3
{[%clk 0:01:41.8]} 31. Rxa4 {[%clk 0:00:27.1]} 31... bxa4+ {[%clk 0:01:42.3]}
32. Qxa4 {[%clk 0:00:26.5]} 32... c2 {[%clk 0:01:35.2]} 33. Qc4 {[%clk
0:00:21.8]} 33... Qxg2 {[%clk 0:01:31]} 0-1

[Event "*** Titled Tuesday Blitz"]
[Site "Chess.com"]
[Date "2020.04.21"]
[Round "7"]
[White "tacticthunder"]
[Black "joksijoksi"]
[Result "1-0"]
[WhiteElo "2599"]
[BlackElo "2366"]
[TimeControl "180+1"]
[EndTime "11:20:43 PDT"]
[Termination "tacticthunder won on time"]

1. e4 {[%clk 0:03:00.9]} 1... c5 {[%clk 0:02:59.5]} 2. Nf3 {[%clk 0:02:51.9]}
2... Nc6 {[%clk 0:02:59.5]} 3. d4 {[%clk 0:02:51.7]} 3... cxd4 {[%clk
0:03:00.4]} 4. Nxd4 {[%clk 0:02:52.6]} 4... e5 {[%clk 0:03:00.8]} 5. Nb5 {[%clk
0:02:52]} 5... d6 {[%clk 0:03:00.9]} 6. c4 {[%clk 0:02:51.9]} 6... Be7 {[%clk
0:02:59.7]} 7. N1c3 {[%clk 0:02:49.1]} 7... a6 {[%clk 0:02:55.4]} 8. Na3 {[%clk
0:02:49.5]} 8... Nf6 {[%clk 0:02:49.7]} 9. Be2 {[%clk 0:02:49.6]} 9... Be6
{[%clk 0:02:49.7]} 10. O-O {[%clk 0:02:49.6]} 10... Qd7 {[%clk 0:02:45.7]} 11.
f3 {[%clk 0:02:45.3]} 11... Nd4 {[%clk 0:02:40.2]} 12. Be3 {[%clk 0:02:45]}
12... Rc8 {[%clk 0:02:37.6]} 13. Rc1 {[%clk 0:02:44.1]} 13... O-O {[%clk
0:02:27.8]} 14. Kh1 {[%clk 0:02:43.2]} 14... Nxe2 {[%clk 0:01:38.1]} 15. Qxe2
{[%clk 0:02:44.1]} 15... Nh5 {[%clk 0:01:38.3]} 16. Rfd1 {[%clk 0:02:40.8]}
16... Qc7 {[%clk 0:01:28.5]} 17. Qd2 {[%clk 0:02:32.2]} 17... g6 {[%clk
0:01:20.8]} 18. Nd5 {[%clk 0:02:29.7]} 18... Bxd5 {[%clk 0:01:19.4]} 19. cxd5
{[%clk 0:02:30.6]} 19... Qb8 {[%clk 0:01:14.5]} 20. Nc4 {[%clk 0:02:29.8]} 20...
Bd8 {[%clk 0:01:00.3]} 21. Qb4 {[%clk 0:02:11.4]} 21... b5 {[%clk 0:00:33.6]}
22. Nxd6 {[%clk 0:01:45.1]} 22... Rxc1 {[%clk 0:00:34.5]} 23. Rxc1 {[%clk
0:01:45.4]} 23... a5 {[%clk 0:00:34.5]} 24. Qxb5 {[%clk 0:01:39]} 24... Qxd6
{[%clk 0:00:27.1]} 25. Bc5 {[%clk 0:01:38.5]} 25... Qc7 {[%clk 0:00:13.5]} 26.
d6 {[%clk 0:01:28.6]} 26... Qc8 {[%clk 0:00:13.2]} 27. d7 {[%clk 0:01:21.8]}
27... Qc7 {[%clk 0:00:11.9]} 28. Rc3 {[%clk 0:01:20.4]} 1-0

[Event "*** Titled Tuesday Blitz"]
[Site "Chess.com"]
[Date "2020.04.21"]
[Round "7"]
[White "Nikolakis2014"]
[Black "OparinGrigoriy"]
[Result "0-1"]
[WhiteElo "2700"]
[BlackElo "2908"]
[TimeControl "180+1"]
[EndTime "11:20:47 PDT"]
[Termination "OparinGrigoriy won by resignation"]

1. Nf3 {[%clk 0:03:00.9]} 1... Nf6 {[%clk 0:02:55.5]} 2. c4 {[%clk 0:03:00.6]}
2... e6 {[%clk 0:02:55.6]} 3. g3 {[%clk 0:03:00.2]} 3... d5 {[%clk 0:02:56.5]}
4. d4 {[%clk 0:03:00]} 4... dxc4 {[%clk 0:02:56.4]} 5. Bg2 {[%clk 0:02:59.7]}
5... a6 {[%clk 0:02:56.9]} 6. O-O {[%clk 0:02:58]} 6... Nc6 {[%clk 0:02:57.5]}
7. e3 {[%clk 0:02:54.1]} 7... Bd7 {[%clk 0:02:57.5]} 8. Nc3 {[%clk 0:02:51.2]}
8... Bd6 {[%clk 0:02:56.2]} 9. Qe2 {[%clk 0:02:50.8]} 9... O-O {[%clk
0:02:56.3]} 10. Qxc4 {[%clk 0:02:48.7]} 10... Qe7 {[%clk 0:02:54.1]} 11. Rd1
{[%clk 0:02:44.8]} 11... Rad8 {[%clk 0:02:48.9]} 12. e4 {[%clk 0:02:40.1]} 12...
e5 {[%clk 0:02:45.1]} 13. Bg5 {[%clk 0:02:39.9]} 13... b5 {[%clk 0:02:42.4]} 14.
Qf1 {[%clk 0:02:26.3]} 14... exd4 {[%clk 0:02:36.3]} 15. Nd5 {[%clk 0:02:25.3]}
15... Qe6 {[%clk 0:02:36.7]} 16. Bxf6 {[%clk 0:02:22.8]} 16... gxf6 {[%clk
0:02:37.6]} 17. Rac1 {[%clk 0:02:18.2]} 17... Be5 {[%clk 0:02:30]} 18. Nh4
{[%clk 0:02:12.6]} 18... Ne7 {[%clk 0:02:02.8]} 19. Nxc7 {[%clk 0:01:39.5]}
19... Bxc7 {[%clk 0:01:51]} 20. Rxc7 {[%clk 0:01:38.6]} 20... Qd6 {[%clk
0:01:51.6]} 21. Rcc1 {[%clk 0:01:34.8]} 21... Bg4 {[%clk 0:01:51.5]} 22. f3
{[%clk 0:01:32.7]} 22... Be6 {[%clk 0:01:51.6]} 23. b3 {[%clk 0:01:24.9]} 23...
Ng6 {[%clk 0:01:51.7]} 24. Nf5 {[%clk 0:01:15.7]} 24... Bxf5 {[%clk 0:01:51.7]}
25. exf5 {[%clk 0:01:15.9]} 25... Ne5 {[%clk 0:01:52.3]} 26. f4 {[%clk 0:01:16]}
26... Ng4 {[%clk 0:01:51.4]} 27. Qf3 {[%clk 0:01:08.6]} 27... Ne3 {[%clk
0:01:51.3]} 28. Rd3 {[%clk 0:01:07.6]} 28... Qb4 {[%clk 0:01:36.7]} 29. h3
{[%clk 0:01:04.6]} 29... Rc8 {[%clk 0:01:35.3]} 30. Rxc8 {[%clk 0:00:30.8]}
30... Rxc8 {[%clk 0:01:36.2]} 31. Rxe3 {[%clk 0:00:20.4]} 31... dxe3 {[%clk
0:01:37.1]} 32. Qxe3 {[%clk 0:00:20.6]} 32... Qc5 {[%clk 0:01:37.6]} 33. Kf2
{[%clk 0:00:19.4]} 33... Qxe3+ {[%clk 0:01:37.5]} 34. Kxe3 {[%clk 0:00:19.7]}
34... Rc2 {[%clk 0:01:37.9]} 35. Bb7 {[%clk 0:00:19.2]} 35... Rxa2 {[%clk
0:01:38.1]} 36. g4 {[%clk 0:00:17.9]} 36... Ra3 {[%clk 0:01:36.8]} 37. Bd5
{[%clk 0:00:17.2]} 37... a5 {[%clk 0:01:36.6]} 38. Kd4 {[%clk 0:00:17.4]} 38...
a4 {[%clk 0:01:37.3]} 39. b4 {[%clk 0:00:17.3]} 39... Rxh3 {[%clk 0:01:36.4]}
40. Kc5 {[%clk 0:00:17.5]} 40... a3 {[%clk 0:01:36.3]} 41. Kxb5 {[%clk
0:00:17.7]} 41... Rd3 {[%clk 0:01:36]} 42. Bc4 {[%clk 0:00:17.9]} 42... Rd2
{[%clk 0:01:34.5]} 43. Ka4 {[%clk 0:00:13.2]} 43... a2 {[%clk 0:01:34.8]} 44.
Bxa2 {[%clk 0:00:12.7]} 44... Rxa2+ {[%clk 0:01:35.7]} 0-1

[Event "*** Titled Tuesday Blitz"]
[Site "Chess.com"]
[Date "2020.04.21"]
[Round "7"]
[White "Grandmaster2B"]
[Black "AnonymusDonkey"]
[Result "0-1"]
[WhiteElo "2527"]
[BlackElo "2415"]
[TimeControl "180+1"]
[EndTime "11:20:56 PDT"]
[Termination "AnonymusDonkey won by resignation"]

1. e4 {[%clk 0:03:00.9]} 1... c5 {[%clk 0:02:57.8]} 2. Nf3 {[%clk 0:03:00.8]}
2... d6 {[%clk 0:02:58.2]} 3. d4 {[%clk 0:03:01.2]} 3... cxd4 {[%clk 0:02:59.1]}
4. Nxd4 {[%clk 0:03:02.1]} 4... Nf6 {[%clk 0:02:59.4]} 5. Nc3 {[%clk 0:03:02.6]}
5... a6 {[%clk 0:02:58.8]} 6. f3 {[%clk 0:03:02.7]} 6... e5 {[%clk 0:02:58.8]}
7. Nb3 {[%clk 0:03:02.6]} 7... Be6 {[%clk 0:02:58.2]} 8. Be3 {[%clk 0:03:03.1]}
8... Be7 {[%clk 0:02:58.3]} 9. Qd2 {[%clk 0:03:03.7]} 9... O-O {[%clk
0:02:58.8]} 10. O-O-O {[%clk 0:03:04.3]} 10... Nbd7 {[%clk 0:02:59.5]} 11. g4
{[%clk 0:03:04.6]} 11... b5 {[%clk 0:03:00.1]} 12. g5 {[%clk 0:03:04.2]} 12...
Nh5 {[%clk 0:03:00.1]} 13. Nd5 {[%clk 0:03:00.4]} 13... Bxd5 {[%clk 0:02:59.4]}
14. exd5 {[%clk 0:03:01.3]} 14... f6 {[%clk 0:02:59.7]} 15. gxf6 {[%clk
0:03:01.2]} 15... Bxf6 {[%clk 0:02:58.1]} 16. Rg1 {[%clk 0:03:00.7]} 16... Nf4
{[%clk 0:02:52.5]} 17. Bxf4 {[%clk 0:02:53.1]} 17... exf4 {[%clk 0:02:53.4]} 18.
Nd4 {[%clk 0:02:50.2]} 18... Bxd4 {[%clk 0:02:46]} 19. Qxd4 {[%clk 0:02:50.2]}
19... Qf6 {[%clk 0:02:33]} 20. Bh3 {[%clk 0:01:55.4]} 20... Qxd4 {[%clk
0:02:26.8]} 21. Rxd4 {[%clk 0:01:56.3]} 21... Ne5 {[%clk 0:02:27]} 22. Be6+
{[%clk 0:01:49.6]} 22... Kh8 {[%clk 0:02:26.8]} 23. Rf1 {[%clk 0:01:42.1]} 23...
Ra7 {[%clk 0:02:03.3]} 24. b3 {[%clk 0:01:38.7]} 24... Rc7 {[%clk 0:02:01.9]}
25. Kb1 {[%clk 0:01:24.9]} 25... Rc3 {[%clk 0:01:58.1]} 26. Bg4 {[%clk
0:01:14.5]} 26... g6 {[%clk 0:01:55.7]} 27. Kb2 {[%clk 0:01:11.9]} 27... Re3
{[%clk 0:01:54.4]} 28. Rd2 {[%clk 0:00:52.4]} 28... h5 {[%clk 0:01:51.1]} 29.
Bh3 {[%clk 0:00:52.3]} 29... Nxf3 {[%clk 0:01:46]} 30. Rdf2 {[%clk 0:00:52.4]}
30... Ne5 {[%clk 0:01:33.4]} 31. Bg2 {[%clk 0:00:46.8]} 31... f3 {[%clk
0:01:22.8]} 32. Kc1 {[%clk 0:00:46.1]} 32... b4 {[%clk 0:01:15.3]} 33. Kd2
{[%clk 0:00:42.1]} 33... Rc3 {[%clk 0:01:15.4]} 34. a3 {[%clk 0:00:42.3]} 34...
a5 {[%clk 0:01:15.6]} 35. axb4 {[%clk 0:00:38.1]} 35... axb4 {[%clk 0:01:16.5]}
36. Kd1 {[%clk 0:00:29.5]} 36... Rf4 {[%clk 0:01:07.7]} 37. Bh1 {[%clk
0:00:24.9]} 37... Rd4+ {[%clk 0:01:07.6]} 38. Kc1 {[%clk 0:00:25]} 38... Nd3+
{[%clk 0:01:06.4]} 0-1

[Event "*** Titled Tuesday Blitz"]
[Site "Chess.com"]
[Date "2020.04.21"]
[Round "7"]
[White "Gandrade2"]
[Black "violetflower04"]
[Result "1-0"]
[WhiteElo "1989"]
[BlackElo "2209"]
[TimeControl "180+1"]
[EndTime "11:20:56 PDT"]
[Termination "Gandrade2 won on time"]

1. b3 {[%clk 0:03:00.9]} 1... c5 {[%clk 0:03:00]} 2. Bb2 {[%clk 0:03:00.7]} 2...
Nc6 {[%clk 0:03:00.9]} 3. e3 {[%clk 0:03:00.8]} 3... Nf6 {[%clk 0:03:00.1]} 4.
Nf3 {[%clk 0:02:58.6]} 4... d5 {[%clk 0:02:59.9]} 5. Bb5 {[%clk 0:02:58.7]} 5...
Qc7 {[%clk 0:02:57.7]} 6. Bxc6+ {[%clk 0:02:55.7]} 6... Qxc6 {[%clk 0:02:58.6]}
7. O-O {[%clk 0:02:55.9]} 7... Bg4 {[%clk 0:02:58.8]} 8. d3 {[%clk 0:02:53.3]}
8... e6 {[%clk 0:02:54.6]} 9. Nbd2 {[%clk 0:02:53.5]} 9... Bd6 {[%clk
0:02:52.3]} 10. h3 {[%clk 0:02:51.1]} 10... Bh5 {[%clk 0:02:52.3]} 11. Qe1
{[%clk 0:02:50.8]} 11... Qc7 {[%clk 0:02:46.9]} 12. e4 {[%clk 0:02:47.5]} 12...
dxe4 {[%clk 0:02:45.4]} 13. dxe4 {[%clk 0:02:48.4]} 13... e5 {[%clk 0:02:42.6]}
14. Qe3 {[%clk 0:02:41.7]} 14... O-O {[%clk 0:02:36]} 15. Nc4 {[%clk 0:02:41.8]}
15... Rfe8 {[%clk 0:02:19.7]} 16. Rad1 {[%clk 0:02:38.8]} 16... Rad8 {[%clk
0:02:20.2]} 17. Rfe1 {[%clk 0:02:37.4]} 17... Bxf3 {[%clk 0:02:10.7]} 18. Qxf3
{[%clk 0:02:36.4]} 18... b5 {[%clk 0:02:11.4]} 19. Ne3 {[%clk 0:02:36]} 19...
Bf8 {[%clk 0:01:33.8]} 20. c4 {[%clk 0:02:34.5]} 20... bxc4 {[%clk 0:01:23.9]}
21. Nxc4 {[%clk 0:02:35.4]} 21... Rxd1 {[%clk 0:01:04]} 22. Rxd1 {[%clk
0:02:34.4]} 22... Qc6 {[%clk 0:00:54]} 23. Nxe5 {[%clk 0:02:15.9]} 23... Qxe4
{[%clk 0:00:54.1]} 24. Qxe4 {[%clk 0:02:15.6]} 24... Nxe4 {[%clk 0:00:55]} 25.
Nd7 {[%clk 0:02:14.5]} 25... Be7 {[%clk 0:00:31.3]} 26. Kf1 {[%clk 0:02:06]}
26... Bg5 {[%clk 0:00:25.6]} 27. Rd5 {[%clk 0:02:00.8]} 27... Nd2+ {[%clk
0:00:24.1]} 28. Kg1 {[%clk 0:01:58.4]} 28... Bf4 {[%clk 0:00:17.7]} 29. g3
{[%clk 0:01:57.8]} 29... Bc7 {[%clk 0:00:07.1]} 30. Nxc5 {[%clk 0:01:57.5]}
30... Bb6 {[%clk 0:00:06.6]} 31. Nd7 {[%clk 0:01:52.7]} 31... Nf3+ {[%clk
0:00:05.9]} 32. Kg2 {[%clk 0:01:52.5]} 32... Ne1+ {[%clk 0:00:05.9]} 33. Kf1
{[%clk 0:01:47.6]} 33... h6 {[%clk 0:00:06.4]} 34. Nxb6 {[%clk 0:01:47.1]} 34...
axb6 {[%clk 0:00:06.2]} 35. Rd7 {[%clk 0:01:42.5]} 35... Nf3 {[%clk 0:00:05.6]}
36. Ba3 {[%clk 0:01:39.8]} 36... Re1+ {[%clk 0:00:02.7]} 37. Kg2 {[%clk
0:01:38.7]} 37... Ne5 {[%clk 0:00:03.6]} 38. Rd8+ {[%clk 0:01:37.9]} 38... Kh7
{[%clk 0:00:03.4]} 39. Re8 {[%clk 0:01:38.1]} 39... f6 {[%clk 0:00:01.9]} 40.
Bd6 {[%clk 0:01:37]} 1-0

[Event "*** Titled Tuesday Blitz"]
[Site "Chess.com"]
[Date "2020.04.21"]
[Round "7"]
[White "JozefKneht"]
[Black "doons21"]
[Result "0-1"]
[WhiteElo "2434"]
[BlackElo "2613"]
[TimeControl "180+1"]
[EndTime "11:20:58 PDT"]
[Termination "doons21 won by resignation"]

1. e4 {[%clk 0:03:00.9]} 1... e6 {[%clk 0:02:59.2]} 2. d4 {[%clk 0:03:00]} 2...
d5 {[%clk 0:02:59.3]} 3. Nc3 {[%clk 0:02:59.7]} 3... Bb4 {[%clk 0:02:59.1]} 4.
e5 {[%clk 0:02:59.6]} 4... Ne7 {[%clk 0:02:59.3]} 5. a3 {[%clk 0:02:58.9]} 5...
Bxc3+ {[%clk 0:02:59.6]} 6. bxc3 {[%clk 0:02:58.8]} 6... c5 {[%clk 0:03:00.5]}
7. Qg4 {[%clk 0:02:57.7]} 7... Kf8 {[%clk 0:02:58.8]} 8. h4 {[%clk 0:02:56.2]}
8... Qa5 {[%clk 0:02:56.7]} 9. Bd2 {[%clk 0:02:53.5]} 9... Qa4 {[%clk
0:02:56.9]} 10. Kd1 {[%clk 0:02:43.5]} 10... Nbc6 {[%clk 0:02:53.1]} 11. Nf3
{[%clk 0:02:41.4]} 11... b6 {[%clk 0:02:50.3]} 12. h5 {[%clk 0:02:39.8]} 12...
h6 {[%clk 0:02:50]} 13. Qf4 {[%clk 0:02:36.7]} 13... cxd4 {[%clk 0:02:32.1]} 14.
cxd4 {[%clk 0:02:34.7]} 14... Ba6 {[%clk 0:02:31.2]} 15. Bxa6 {[%clk 0:02:22.3]}
15... Qxa6 {[%clk 0:02:30.7]} 16. g4 {[%clk 0:02:21.1]} 16... Rc8 {[%clk
0:02:20.3]} 17. c3 {[%clk 0:01:47.6]} 17... Qa4+ {[%clk 0:02:10.5]} 18. Ke2
{[%clk 0:01:46]} 18... Qc4+ {[%clk 0:02:06.5]} 19. Ke3 {[%clk 0:01:41.2]} 19...
Na5 {[%clk 0:01:45.6]} 20. Nh4 {[%clk 0:01:39.1]} 20... Ke8 {[%clk 0:01:32.7]}
21. Rac1 {[%clk 0:01:13.6]} 21... Nb3 {[%clk 0:01:05.9]} 22. Rc2 {[%clk
0:01:11.1]} 22... Qa4 {[%clk 0:01:04.1]} 23. Ra2 {[%clk 0:01:06.8]} 23... Na5
{[%clk 0:00:33.2]} 24. Kf3 {[%clk 0:00:55.3]} 24... g5 {[%clk 0:00:29.9]} 25.
hxg6 {[%clk 0:00:51]} 25... fxg6 {[%clk 0:00:30.8]} 26. Kg2 {[%clk 0:00:47.3]}
26... g5 {[%clk 0:00:30.5]} 27. Qf6 {[%clk 0:00:47.2]} 27... Rf8 {[%clk
0:00:30.2]} 28. Qxe6 {[%clk 0:00:45.5]} 28... Rc6 {[%clk 0:00:25.4]} 0-1